fUST/lending_fUST_20250227
["ID","MTS","AMOUNT","RATE_DAILY","PERIOD"]
[354747174,1740664247197,-500.0,0.00051232,120]
[354747175,1740664247206,-500.0,0.00051232,120]
[354747176,1740664247215,-2324.7,0.00051232,120]
[354747177,1740664247225,-904.92,0.00051232,120]
[354747178,1740664247235,-223.62,0.00051232,120]
[354747179,1740664247253,-500.0,0.00051232,120]
[354747180,1740664247263,-1516.7,0.00051232,120]
[354747181,1740664247272,-500.0,0.00051232,120]
[354747182,1740664247282,-2422.59,0.00051232,120]
[354747183,1740664247291,-696.65,0.00051232,120]
[354747184,1740664247301,-500.0,0.00051232,120]
[354747185,1740664247310,-898.12,0.00051232,120]
[354747186,1740664247319,-500.0,0.00051232,120]
[354747187,1740664247329,-500.0,0.00051232,120]
[354747188,1740664247339,-500.0,0.00051232,120]
[354747189,1740664247348,-500.0,0.00051232,120]
[354747190,1740664247358,-875.0,0.00051232,2]
[354747191,1740664247367,-500.0,0.00051232,20]
[354747192,1740664247376,-3550.27,0.00051232,6]
[354747193,1740664247386,-712.67,0.00051232,120]
[354747194,1740664247395,-6851.14,0.00051232,120]
[354747195,1740664247404,-1875.0,0.00051232,120]
[354747196,1740664247414,-1885.888821,0.00051232,120]
[354747197,1740664247423,-2365.65,0.00051232,120]
[354747198,1740664247433,-1885.888821,0.00051232,120]
[354747199,1740664247443,-298.09633105,0.00051487,30]
[354747200,1740664247452,-150.35,0.00051487,30]
[354747201,1740664247461,-150.35,0.00051487,30]
[354747202,1740664247479,-150.35,0.00051487,2]
[354747203,1740664247488,-150.35,0.00051487,30]
[354747204,1740664247501,-500.0,0.00051487,120]
[354747205,1740664247511,-150.35,0.00051487,30]
[354747206,1740664247520,-150.35,0.00051487,30]
[354747207,1740664247530,-2000.0,0.000515,120]
[354747208,1740664247539,-501.38,0.00051506,120]
[354747209,1740664247549,-1421.84,0.00051506,120]
[354747210,1740664247558,-500.0,0.00051506,120]
[354747211,1740664247568,-500.0,0.00051506,120]
[354747212,1740664247577,-500.0,0.00051506,120]
[354747213,1740664247586,-500.0,0.00051506,120]
[354747214,1740664247596,-500.0,0.00051506,120]
[354747215,1740664247606,-500.0,0.00051506,120]
[354747216,1740664247615,-75167.17,0.00051506,7]
[354747217,1740664247624,-527.56,0.00051506,120]
[354747218,1740664247633,-6084.84,0.00051506,120]
[354747219,1740664247642,-862.45,0.00051506,120]
[354747220,1740664247652,-500.0,0.00051506,120]
[354747221,1740664247661,-500.0,0.00051506,120]
[354747222,1740664247670,-1970.2,0.00051506,120]
[354747223,1740664247681,-500.0,0.00051506,120]
[354747224,1740664247691,-500.0,0.00051506,120]
[354747225,1740664247700,-2324.7,0.00051506,120]
[354747226,1740664247710,-904.92,0.00051506,120]
[354747227,1740664247719,-500.0,0.00051506,120]
[354747228,1740664247728,-1516.7,0.00051506,120]
[354747229,1740664247737,-500.0,0.00051506,120]
[354747230,1740664247747,-2422.59,0.00051506,120]
[354747231,1740664247758,-696.65,0.00051506,120]
[354747232,1740664247767,-500.0,0.00051506,120]
[354747233,1740664247777,-898.12,0.00051506,120]
[354747234,1740664247786,-476.96283655,0.00051506,120]
[354747235,1740664247796,-500.0,0.00051506,120]
[354747236,1740664247806,-500.0,0.00051506,120]
[354747237,1740664247816,-500.0,0.00051506,120]
[354747238,1740664247826,-875.0,0.00051506,2]
[354747239,1740664247835,-3550.27,0.00051506,6]
[354747240,1740664247847,-712.67,0.00051506,120]
[354747241,1740664247859,-6851.14,0.00051506,120]
[354747242,1740664247868,-1875.0,0.00051506,120]
[354747243,1740664247878,-1885.888821,0.00051506,120]
[354747244,1740664247887,-2365.65,0.00051506,120]
[354747245,1740664247897,-1885.888823,0.00051506,120]
[354747246,1740664247906,-203.79654028,0.00051514,30]
[354747247,1740664247916,-203.12117875,0.00051514,30]
[354747248,1740664247926,-150.37,0.00051514,30]
[354747249,1740664247936,-500.0,0.00051514,120]
[354747250,1740664247946,-150.35,0.00051514,30]
[354747251,1740664247955,-150.35,0.00051514,30]
[354747252,1740664247964,-500.0,0.00051542,120]
[354747253,1740664247974,-150.35,0.00051542,30]
[354747254,1740664247984,-150.35,0.00051542,30]
[354747255,1740664247993,-500.0,0.00051569,120]
[354747256,1740664248007,-150.35,0.00051569,30]
[354747257,1740664248017,-150.35,0.00051569,30]
[354747258,1740664248027,-500.0,0.00051597,120]
[354747259,1740664248037,-150.35,0.00051597,30]
[354747260,1740664248047,-150.35,0.00051597,30]
[354747261,1740664248056,-165.17,0.000516,30]
[354747262,1740664248065,-500.0,0.00051624,120]
[354747263,1740664248076,-248.25,0.00051624,30]
[354747264,1740664248086,-248.25,0.00051624,30]
[354747265,1740664248096,-355.4786638,0.00051644,30]
[354747266,1740664248106,-500.0,0.00051651,120]
[354747267,1740664248116,-500.0,0.00051679,120]
[354747268,1740664248125,-500.0,0.00051706,120]
[354747269,1740664248135,-1000.0,0.00051721,10]
[354747270,1740664248145,-500.0,0.00051734,120]
[354747271,1740664248156,-166.1,0.00051742,30]
[354747272,1740664248166,-500.0,0.00051761,120]
[354747273,1740664248176,-501.38,0.0005178,120]
[354747274,1740664248186,-1421.84,0.0005178,120]
[354747275,1740664248196,-500.0,0.0005178,120]
[354747276,1740664248205,-500.0,0.0005178,120]
[354747277,1740664248215,-500.0,0.0005178,120]
[354747278,1740664248224,-500.0,0.0005178,120]
[354747279,1740664248234,-552.526536,0.0005178,120]
[354747280,1740664248243,-500.0,0.0005178,120]
[354747281,1740664248258,-75167.17,0.0005178,7]
[354747282,1740664248269,-527.56,0.0005178,120]
[354747283,1740664248279,-6084.84,0.0005178,120]
[354747284,1740664248289,-862.45,0.0005178,120]
[354747285,1740664248298,-500.0,0.0005178,120]
[354747286,1740664248308,-500.0,0.0005178,120]
[354747287,1740664248318,-1970.2,0.0005178,120]
[354747288,1740664248327,-500.0,0.0005178,120]
[354747289,1740664248337,-500.0,0.0005178,120]
[354747290,1740664248347,-2324.7,0.0005178,120]
[354747291,1740664248356,-904.92,0.0005178,120]
[354747292,1740664248365,-302.43,0.0005178,120]
[354747293,1740664248375,-1516.7,0.0005178,120]
[354747294,1740664248384,-596.24,0.0005178,120]
[354747295,1740664248394,-2422.59,0.0005178,120]
[354747296,1740664248403,-696.65,0.0005178,120]
[354747297,1740664248413,-500.0,0.0005178,120]
[354747298,1740664248422,-898.12,0.0005178,120]
[354747299,1740664248431,-500.0,0.0005178,120]
[354747300,1740664248441,-500.0,0.0005178,120]
[354747301,1740664248450,-500.0,0.0005178,120]
[354747302,1740664248459,-875.0,0.0005178,2]
[354747303,1740664248469,-3550.27,0.0005178,6]
[354747304,1740664248478,-712.67,0.0005178,120]
[354747305,1740664248489,-6851.14,0.0005178,120]
[354747306,1740664248501,-1875.0,0.0005178,120]
[354747307,1740664248513,-2365.65,0.0005178,120]
[354747308,1740664248524,-500.0,0.00051788,120]
[354747309,1740664248534,-128768.71,0.000518,30]
[354747310,1740664248544,-3285.84,0.000518,30]
[354747311,1740664248554,-1126.98,0.000518,51]
[354747312,1740664248564,-1126.98,0.000518,51]
[354747313,1740664248573,-1126.98,0.000518,51]
[354747314,1740664248583,-1126.98,0.000518,51]
[354747315,1740664248592,-1126.98,0.000518,51]
[354747316,1740664248602,-1126.98,0.000518,51]
[354747317,1740664248612,-1126.98,0.000518,51]
[354747318,1740664248621,-1126.98,0.000518,51]
[354747319,1740664248630,-1126.98,0.000518,51]
[354747320,1740664248639,-1126.98,0.000518,51]
[354747321,1740664248649,-1126.98,0.000518,51]
[354747322,1740664248658,-1126.98,0.000518,51]
[354747323,1740664248667,-500.0,0.00051816,120]
[354747324,1740664248677,-500.0,0.00051843,120]
[354747325,1740664248686,-205.65590834,0.00051864,12]
[354747326,1740664248696,-500.0,0.00051871,120]
[354747327,1740664248706,-710.0,0.00051898,120]
[354747328,1740664248716,-150.0,0.000519,120]
[354747329,1740664248726,-501.38,0.00052054,120]
[354747330,1740664248736,-1421.84,0.00052054,120]
[354747331,1740664248745,-500.0,0.00052054,120]
[354747332,1740664248757,-500.0,0.00052054,120]
[354747333,1740664248767,-329.0666054,0.00052054,120]
[354747334,1740664248776,-500.0,0.00052054,120]
[354747335,1740664248786,-500.0,0.00052054,120]
[354747336,1740664248796,-75167.17,0.00052054,7]
[354747337,1740664248806,-527.56,0.00052054,120]
[354747338,1740664248815,-6084.84,0.00052054,120]
[354747339,1740664248828,-862.45,0.00052054,120]
[354747340,1740664248837,-500.0,0.00052054,120]
[354747341,1740664248847,-500.0,0.00052054,120]
[354747342,1740664248856,-1970.2,0.00052054,120]
[354747343,1740664248868,-500.0,0.00052054,120]
[354747344,1740664248877,-500.0,0.00052054,120]
[354747345,1740664248887,-2324.7,0.00052054,120]
[354747346,1740664248898,-904.92,0.00052054,120]
[354747347,1740664248907,-1516.7,0.00052054,120]
[354747348,1740664248916,-2422.59,0.00052054,120]
[354747349,1740664248926,-696.65,0.00052054,120]
[354747350,1740664248935,-500.0,0.00052054,120]
[354747351,1740664248945,-898.12,0.00052054,120]
[354747352,1740664248954,-500.0,0.00052054,120]
[354747353,1740664248964,-500.0,0.00052054,120]
[354747354,1740664248973,-500.0,0.00052054,120]
[354747355,1740664248983,-875.0,0.00052054,2]
[354747356,1740664248993,-3550.27,0.00052054,6]
[354747357,1740664249006,-712.67,0.00052054,120]
[354747358,1740664249018,-6851.14,0.00052054,120]
[354747359,1740664249027,-1875.0,0.00052054,120]
[354747360,1740664249037,-2365.65,0.00052054,120]
[354747361,1740664249047,-1834.58,0.000521,30]
[354747362,1740664249057,-1517.286658,0.00052268,10]
[354747363,1740664249067,-18711.20887071,0.00052275,120]
[354747364,1740664249078,-182.71,0.0005229,30]
[354747365,1740664249088,-501.38,0.00052328,120]
[354747366,1740664249098,-1421.84,0.00052328,120]
[354747367,1740664249108,-500.0,0.00052328,120]
[354747368,1740664249117,-500.0,0.00052328,120]
[354747369,1740664249127,-226.76,0.00052328,120]
[354747370,1740664249136,-500.0,0.00052328,120]
[354747371,1740664249145,-75167.17,0.00052328,7]
[354747372,1740664249154,-527.56,0.00052328,120]
[354747373,1740664249164,-6084.84,0.00052328,120]
[354747374,1740664249174,-862.45,0.00052328,120]
[354747375,1740664249184,-500.0,0.00052328,120]
[354747376,1740664249193,-601.86,0.00052328,120]
[354747377,1740664249203,-1970.2,0.00052328,120]
[354747378,1740664249212,-500.0,0.00052328,120]
[354747379,1740664249222,-500.0,0.00052328,120]
[354747380,1740664249232,-2324.7,0.00052328,120]
[354747381,1740664249242,-904.92,0.00052328,120]
[354747382,1740664249253,-1516.7,0.00052328,120]
[354747383,1740664249359,-2422.59,0.00052328,120]
[354747384,1740664249380,-696.65,0.00052328,120]
[354747385,1740664249390,-500.0,0.00052328,120]
[354747386,1740664249399,-898.12,0.00052328,120]
[354747387,1740664249409,-500.0,0.00052328,120]
[354747388,1740664249419,-264.59,0.00052328,120]
[354747389,1740664249428,-500.0,0.00052328,120]
[354747390,1740664249437,-875.0,0.00052328,2]
[354747391,1740664249447,-3550.27,0.00052328,6]
[354747392,1740664249456,-712.67,0.00052328,120]
[354747393,1740664249466,-6851.14,0.00052328,120]
[354747394,1740664249476,-1875.0,0.00052328,120]
[354747395,1740664249485,-2365.65,0.00052328,120]
[354747396,1740664249495,-434.63,0.000524,30]
[354747397,1740664249508,-500.0,0.000526,30]
[354747398,1740664249517,-500.0,0.000526,30]
[354747399,1740664249527,-500.0,0.000526,30]
[354747400,1740664249537,-500.0,0.000526,30]
[354747401,1740664249546,-500.0,0.000526,30]
[354747402,1740664249556,-500.0,0.000526,30]
[354747403,1740664249566,-500.0,0.000526,30]
[354747404,1740664249576,-500.0,0.000526,30]
[354747405,1740664249585,-500.0,0.000526,30]
[354747406,1740664249595,-500.0,0.000526,30]
[354747407,1740664249604,-500.0,0.00052602,120]
[354747408,1740664249614,-501.38,0.00052602,120]
[354747409,1740664249624,-1421.84,0.00052602,120]
[354747410,1740664249634,-500.0,0.00052602,120]
[354747411,1740664249645,-500.0,0.00052602,120]
[354747412,1740664249654,-500.0,0.00052602,120]
[354747413,1740664249663,-75167.17,0.00052602,7]
[354747414,1740664249672,-527.56,0.00052602,120]
[354747415,1740664249682,-6084.84,0.00052602,120]
[354747416,1740664249691,-862.45,0.00052602,120]
[354747417,1740664249700,-611.93263605,0.00052602,120]
[354747418,1740664249710,-1970.2,0.00052602,120]
[354747419,1740664249719,-500.0,0.00052602,120]
[354747420,1740664249729,-500.0,0.00052602,120]
[354747421,1740664249740,-2324.7,0.00052602,120]
[354747422,1740664249752,-904.92,0.00052602,120]
[354747423,1740664249762,-1516.7,0.00052602,120]
[354747424,1740664249771,-2422.59,0.00052602,120]
[354747425,1740664249781,-696.65,0.00052602,120]
[354747426,1740664249790,-500.0,0.00052602,120]
[354747427,1740664249800,-898.12,0.00052602,120]
[354747428,1740664249809,-500.0,0.00052602,120]
[354747429,1740664249820,-633.3,0.00052602,120]
[354747430,1740664249829,-875.0,0.00052602,2]
[354747431,1740664249840,-3550.27,0.00052602,6]
[354747432,1740664249850,-712.67,0.00052602,120]
[354747433,1740664249861,-6851.14,0.00052602,120]
[354747434,1740664249870,-1875.0,0.00052602,120]
[354747435,1740664249880,-2365.65,0.00052602,120]
[354747436,1740664249890,-656.86,0.000527,30]
[354747437,1740664249899,-300.0,0.000527,29]
[354747438,1740664249910,-302.0,0.00052838,30]
[354747439,1740664249921,-150.65573946,0.00052873,10]
[354747440,1740664249931,-20000.0,0.00052876,53]
[354747441,1740664249942,-500.0,0.00052876,120]
[354747442,1740664249952,-501.38,0.00052876,120]
[354747443,1740664249962,-1421.84,0.00052876,120]
[354747444,1740664250184,-500.0,0.00052876,120]
[354747445,1740664250196,-500.0,0.00052876,120]
[354747446,1740664250207,-216.9,0.00052876,120]
[354747447,1740664250217,-75167.17,0.00052876,7]
[354747448,1740664250228,-527.56,0.00052876,120]
[354747449,1740664250238,-6084.84,0.00052876,120]
[354747450,1740664250248,-862.45,0.00052876,120]
[354747451,1740664250264,-1970.2,0.00052876,120]
[354747452,1740664250273,-500.0,0.00052876,120]
[354747453,1740664250284,-500.0,0.00052876,120]
[354747454,1740664250294,-2324.7,0.00052876,120]
[354747455,1740664250304,-904.92,0.00052876,120]
[354747456,1740664250314,-1516.7,0.00052876,120]
[354747457,1740664250324,-2422.59,0.00052876,120]
[354747458,1740664250334,-696.65,0.00052876,120]
[354747459,1740664250344,-500.0,0.00052876,120]
[354747460,1740664250355,-898.12,0.00052876,120]
[354747461,1740664250364,-500.0,0.00052876,120]
[354747462,1740664250374,-875.0,0.00052876,2]
[354747463,1740664250384,-3550.27,0.00052876,6]
[354747464,1740664250393,-712.67,0.00052876,120]
[354747465,1740664250403,-6851.14,0.00052876,120]
[354747466,1740664250412,-1875.0,0.00052876,120]
[354747467,1740664250422,-2365.65,0.00052876,120]
[354747468,1740664250431,-2155.59,0.000529,2]
[354747469,1740664250440,-150.0,0.000529,120]
[354747470,1740664250449,-831.0,0.00053,120]
[354747471,1740664250458,-501.38,0.0005315,120]
[354747472,1740664250468,-1421.84,0.0005315,120]
[354747473,1740664250477,-500.0,0.0005315,120]
[354747474,1740664250486,-500.0,0.0005315,120]
[354747475,1740664250495,-75167.17,0.0005315,7]
[354747476,1740664250508,-527.56,0.0005315,120]
[354747477,1740664250517,-6084.84,0.0005315,120]
[354747478,1740664250526,-862.45,0.0005315,120]
[354747479,1740664250536,-1970.2,0.0005315,120]
[354747480,1740664250545,-500.0,0.0005315,120]
[354747481,1740664250555,-510.68,0.0005315,120]
[354747482,1740664250564,-2324.7,0.0005315,120]
[354747483,1740664250574,-904.92,0.0005315,120]
[354747484,1740664250583,-1516.7,0.0005315,120]
[354747485,1740664250593,-2422.59,0.0005315,120]
[354747486,1740664250603,-696.65,0.0005315,120]
[354747487,1740664250611,-500.0,0.0005315,120]
[354747488,1740664250620,-898.12,0.0005315,120]
[354747489,1740664250630,-500.0,0.0005315,120]
[354747490,1740664250639,-875.0,0.0005315,2]
[354747491,1740664250649,-3550.27,0.0005315,6]
[354747492,1740664250658,-712.67,0.0005315,120]
[354747493,1740664250668,-6851.14,0.0005315,120]
[354747494,1740664250676,-1875.0,0.0005315,120]
[354747495,1740664250685,-2365.65,0.0005315,120]
[354747496,1740664250694,-205.65590834,0.00053186,12]
[354747497,1740664250703,-2200.0,0.00053356,30]
[354747498,1740664250713,-500.0,0.00053356,30]
[354747499,1740664250722,-501.38,0.00053424,120]
[354747500,1740664250731,-1421.84,0.00053424,120]
[354747501,1740664250740,-500.0,0.00053424,120]
[354747502,1740664250749,-500.0,0.00053424,120]
[354747503,1740664250763,-75167.17,0.00053424,7]
[354747504,1740664250772,-527.56,0.00053424,120]
[354747505,1740664250782,-6084.84,0.00053424,120]
[354747506,1740664250793,-862.45,0.00053424,120]
[354747507,1740664250803,-1970.2,0.00053424,120]
[354747508,1740664250813,-222.78,0.00053424,120]
[354747509,1740664250824,-2324.7,0.00053424,120]
[354747510,1740664250834,-904.92,0.00053424,120]
[354747511,1740664250847,-1516.7,0.00053424,120]
[354747512,1740664250857,-2422.59,0.00053424,120]
[354747513,1740664250867,-696.65,0.00053424,120]
[354747514,1740664250877,-500.0,0.00053424,120]
[354747515,1740664250888,-898.12,0.00053424,120]
[354747516,1740664250897,-305.37,0.00053424,120]
[354747517,1740664250907,-875.0,0.00053424,2]
[354747518,1740664250917,-3550.27,0.00053424,6]
[354747519,1740664250926,-712.67,0.00053424,120]
[354747520,1740664250937,-6851.14,0.00053424,120]
[354747521,1740664250946,-1875.0,0.00053424,120]
[354747522,1740664250956,-2365.65,0.00053424,120]
[354747523,1740664250965,-150.0,0.00053522,14]
[354747524,1740664250975,-150.0,0.00053522,14]
[354747525,1740664250984,-1021.30832199,0.00053608,13]
[354747526,1740664250994,-501.38,0.00053698,120]
[354747527,1740664251007,-1421.84,0.00053698,120]
[354747528,1740664251016,-500.0,0.00053698,120]
[354747529,1740664251026,-500.0,0.00053698,120]
[354747530,1740664251035,-75167.17,0.00053698,7]
[354747531,1740664251045,-527.56,0.00053698,120]
[354747532,1740664251054,-6084.84,0.00053698,120]
[354747533,1740664251063,-862.45,0.00053698,120]
[354747534,1740664251073,-1970.2,0.00053698,120]
[354747535,1740664251083,-2324.7,0.00053698,120]
[354747536,1740664251094,-904.92,0.00053698,120]
[354747537,1740664251103,-1516.7,0.00053698,120]
[354747538,1740664251112,-2422.59,0.00053698,120]
[354747539,1740664251122,-696.65,0.00053698,120]
[354747540,1740664251132,-500.0,0.00053698,120]
[354747541,1740664251142,-898.12,0.00053698,120]
[354747542,1740664251151,-875.0,0.00053698,2]
[354747543,1740664251160,-3550.27,0.00053698,6]
[354747544,1740664251169,-712.67,0.00053698,120]
[354747545,1740664251179,-6851.14,0.00053698,120]
[354747546,1740664251189,-1875.0,0.00053698,120]
[354747547,1740664251199,-2365.65,0.00053698,120]
[354747548,1740664251209,-491.78706509,0.00053698,30]
[354747549,1740664251218,-20000.0,0.00053972,44]
[354747550,1740664251228,-501.38,0.00053972,120]
[354747551,1740664251238,-1421.84,0.00053972,120]
[354747552,1740664251247,-500.0,0.00053972,120]
[354747553,1740664251261,-500.0,0.00053972,120]
[354747554,1740664251271,-75167.17,0.00053972,7]
[354747555,1740664251280,-527.56,0.00053972,120]
[354747556,1740664251289,-6084.84,0.00053972,120]
[354747557,1740664251299,-862.45,0.00053972,120]
[354747558,1740664251309,-1970.2,0.00053972,120]
[354747559,1740664251320,-2324.7,0.00053972,120]
[354747560,1740664251329,-904.92,0.00053972,120]
[354747561,1740664251338,-1516.7,0.00053972,120]
[354747562,1740664251348,-2422.59,0.00053972,120]
[354747563,1740664251357,-696.65,0.00053972,120]
[354747564,1740664251366,-500.0,0.00053972,120]
[354747565,1740664251376,-898.12,0.00053972,120]
[354747566,1740664251387,-875.0,0.00053972,2]
[354747567,1740664251398,-3550.27,0.00053972,6]
[354747568,1740664251408,-712.67,0.00053972,120]
[354747569,1740664251417,-6851.14,0.00053972,120]
[354747570,1740664251427,-1875.0,0.00053972,120]
[354747571,1740664251438,-2365.65,0.00053972,120]
[354747572,1740664251448,-151.0,0.00054,120]
[354747573,1740664251457,-165.17,0.00054,30]
[354747574,1740664251467,-2452.95103655,0.00054117,28]
[354747575,1740664251476,-501.38,0.00054246,120]
[354747576,1740664251486,-1421.84,0.00054246,120]
[354747577,1740664251495,-500.0,0.00054246,120]
[354747578,1740664251509,-517.09,0.00054246,120]
[354747579,1740664251519,-75167.17,0.00054246,7]
[354747580,1740664251528,-527.56,0.00054246,120]
[354747581,1740664251539,-6084.84,0.00054246,120]
[354747582,1740664251548,-862.45,0.00054246,120]
[354747583,1740664251557,-1970.2,0.00054246,120]
[354747584,1740664251567,-2324.7,0.00054246,120]
[354747585,1740664251576,-904.92,0.00054246,120]
[354747586,1740664251586,-1516.7,0.00054246,120]
[354747587,1740664251596,-2422.59,0.00054246,120]
[354747588,1740664251606,-696.65,0.00054246,120]
[354747589,1740664251615,-374.64,0.00054246,120]
[354747590,1740664251624,-898.12,0.00054246,120]
[354747591,1740664251634,-875.0,0.00054246,2]
[354747592,1740664251643,-3550.27,0.00054246,6]
[354747593,1740664251652,-712.67,0.00054246,120]
[354747594,1740664251662,-6851.14,0.00054246,120]
[354747595,1740664251671,-1875.0,0.00054246,120]
[354747596,1740664251681,-2365.65,0.00054246,120]
[354747597,1740664251691,-153.0,0.00054247,30]
[354747598,1740664251700,-153.0,0.00054247,30]
[354747599,1740664251709,-154.715033,0.00054247,30]
[354747600,1740664251719,-153.0,0.00054247,30]
[354747601,1740664251728,-500.0,0.00054273,10]
[354747602,1740664251737,-300.0,0.00054273,10]
[354747603,1740664251746,-128768.71,0.000543,30]
[354747604,1740664251759,-3285.84,0.000544,30]
[354747605,1740664251768,-205.65590834,0.00054507,13]
[354747606,1740664251777,-501.38,0.0005452,120]
[354747607,1740664251787,-1421.84,0.0005452,120]
[354747608,1740664251796,-500.0,0.0005452,120]
[354747609,1740664251805,-75167.17,0.0005452,7]
[354747610,1740664251815,-527.56,0.0005452,120]
[354747611,1740664251828,-6084.84,0.0005452,120]
[354747612,1740664251838,-862.45,0.0005452,120]
[354747613,1740664251848,-1970.2,0.0005452,120]
[354747614,1740664251857,-2324.7,0.0005452,120]
[354747615,1740664251868,-904.92,0.0005452,120]
[354747616,1740664251878,-1516.7,0.0005452,120]
[354747617,1740664251887,-2422.59,0.0005452,120]
[354747618,1740664251898,-696.65,0.0005452,120]
[354747619,1740664251908,-898.12,0.0005452,120]
[354747620,1740664251918,-875.0,0.0005452,2]
[354747621,1740664251927,-3550.27,0.0005452,6]
[354747622,1740664251937,-712.67,0.0005452,120]
[354747623,1740664251948,-6851.14,0.0005452,120]
[354747624,1740664251958,-1875.0,0.0005452,120]
[354747625,1740664251968,-2365.65,0.0005452,120]
[354747626,1740664251978,-1000.0,0.00054794,120]
[354747627,1740664251988,-1000.0,0.00054794,120]
[354747628,1740664251997,-1003.08956887,0.00054794,120]
[354747629,1740664252012,-501.38,0.00054794,120]
[354747630,1740664252022,-1421.84,0.00054794,120]
[354747631,1740664252032,-603.12616468,0.00054794,120]
[354747632,1740664252042,-850.0,0.00054794,120]
[354747633,1740664252051,-75167.17,0.00054794,7]
[354747634,1740664252061,-527.56,0.00054794,120]
[354747635,1740664252070,-6084.84,0.00054794,120]
[354747636,1740664252080,-862.45,0.00054794,120]
[354747637,1740664252090,-1970.2,0.00054794,120]
[354747638,1740664252099,-2324.7,0.00054794,120]
[354747639,1740664252109,-904.92,0.00054794,120]
[354747640,1740664252119,-1516.7,0.00054794,120]
[354747641,1740664252128,-2422.59,0.00054794,120]
[354747642,1740664252138,-696.65,0.00054794,120]
[354747643,1740664252240,-1897.35,0.00054794,120]
[354747644,1740664252253,-1897.35,0.00054794,120]
[354747645,1740664252263,-1897.35,0.00054794,120]
[354747646,1740664252272,-1897.35,0.00054794,120]
[354747647,1740664252282,-1897.35,0.00054794,120]
[354747648,1740664252291,-1897.35,0.00054794,120]
[354747649,1740664252302,-1897.35,0.00054794,120]
[354747650,1740664252312,-1897.35,0.00054794,120]
[354747651,1740664252322,-1897.35,0.00054794,120]
[354747652,1740664252332,-1897.35,0.00054794,120]
[354747653,1740664252341,-1897.35,0.00054794,120]
[354747654,1740664252352,-1897.35,0.00054794,120]
[354747655,1740664252361,-1897.35,0.00054794,120]
[354747656,1740664252371,-1897.35,0.00054794,120]
[354747657,1740664252380,-1897.35,0.00054794,120]
[354747658,1740664252390,-1897.35,0.00054794,120]
[354747659,1740664252400,-1897.35,0.00054794,120]
[354747660,1740664252410,-1897.35,0.00054794,120]
[354747661,1740664252420,-1897.35,0.00054794,120]
[354747662,1740664252429,-1897.35,0.00054794,120]
[354747663,1740664252438,-1897.35,0.00054794,120]
[354747664,1740664252447,-898.12,0.00054794,120]
[354747665,1740664252457,-875.0,0.00054794,2]
[354747666,1740664252466,-3550.27,0.00054794,6]
[354747667,1740664252475,-712.67,0.00054794,120]
[354747668,1740664252486,-6851.14,0.00054794,120]
[354747669,1740664252496,-1875.0,0.00054794,120]
[354747670,1740664252509,-2365.65,0.00054794,120]
[354747671,1740664252519,-481.26179805,0.00054795,120]
[354747672,1740664252528,-1000.0,0.00054852,15]
[354747673,1740664252538,-10000.0,0.00055,55]